Workbook

Sheet ورقة1 (hidden)

Sheet Sheet1
A1: اسم الموظف | B1: عدد الايام | C1: المرتب | D1: السلف | E1: الاجمالي
A2: ابانوب بشاره نصر بشاره | B2: =SUM(Sheet2!C2:AF2) -> 3 | C2: =Sheet1!$B2*65 -> 195 | D2: 30 | E2: =$C2-$D2 -> 165
A3: ابراهيم احمد محمد عيسي | B3: =SUM(Sheet2!C3:AF3) -> 3 | C3: =Sheet1!$B3*65 -> 195 | D3: 50 | E3: =$C3-$D3 -> 145
A4: ابراهيم عادل ابراهيم جباره | B4: =SUM(Sheet2!C4:AF4) -> 17 | C4: =Sheet1!$B4*65 -> 1105 | E4: 1105
A5: ابراهيم عبدالحميد اسماعيل | B5: 10 | C5: 10 | E5: 65
A6: ابراهيم عبدالله محمد علي | B6: =SUM(Sheet2!C6:AF6) -> 6 | C6: =Sheet1!$B6*65 -> 390 | E6: 390
A7: ابراهيم عقيلي ابراهيم حماد | B7: =SUM(Sheet2!C7:AF7) -> 16 | C7: =Sheet1!$B7*65 -> 1040 | E7: 1040
A8: ابراهيم كامل علي عويان | B8: =SUM(Sheet2!C8:AF8) -> 25 | C8: =Sheet1!$B8*65 -> 1625 | D8: 300 | E8: 1325
A9: ابراهيم محمد ابراهيم جاد | B9: =SUM(Sheet2!C9:AF9) -> 4 | C9: =Sheet1!$B9*65 -> 260 | E9: 260
A10: ابراهيم محمد شعيب علي | B10: =SUM(Sheet2!C10:AF10) -> 2 | C10: =Sheet1!$B10*65 -> 130 | E10: 130
A11: ابراهيم يوسف درويش ابراهيم | B11: =SUM(Sheet2!C11:AF11) -> 7 | C11: =Sheet1!$B11*65 -> 455 | E11: 455
A12: ابوالسعود صابر ابوالسعود | B12: =SUM(Sheet2!C12:AF12) -> 1 | C12: =Sheet1!$B12*65 -> 65 | E12: 65
A13: ابوالعلا محمد ابوالعلا | B13: =SUM(Sheet2!C13:AF13) -> 29 | C13: =Sheet1!$B13*65 -> 1885 | E13: 1885
A14: ابوبكر عبدالعزيز عثمان | B14: =SUM(Sheet2!C14:AF14) -> 53 | C14: =Sheet1!$B14*65 -> 3445 | E14: 3445
A15: احمد ابو نبوت احمد | B15: =SUM(Sheet2!C15:AF15) -> 10 | C15: =Sheet1!$B15*65 -> 650 | E15: 650
A16: احمد اشرف محمد حسنين | B16: =SUM(Sheet2!C16:AF16) -> 24 | C16: =Sheet1!$B16*65 -> 1560 | E16: 1560
A17: احمد انور محمد الهلوبي | B17: =SUM(Sheet2!C17:AF17) -> 8 | C17: =Sheet1!$B17*65 -> 520 | E17: 520
A18: احمد ايمن نبوي | B18: =SUM(Sheet2!C18:AF18) -> 1 | C18: =Sheet1!$B18*65 -> 65 | E18: 65
A19: احمد جلال احمد محارم | B19: =SUM(Sheet2!C19:AF19) -> 47 | C19: =Sheet1!$B19*65 -> 3055 | E19: 3055
A20: احمد جمال احمد هلال | B20: =SUM(Sheet2!C20:AF20) -> 6 | C20: =Sheet1!$B20*65 -> 390 | E20: 390
A21: احمد جمال عيسي حمزه | B21: =SUM(Sheet2!C21:AF21) -> 17 | C21: =Sheet1!$B21*65 -> 1105 | E21: 1105
A22: احمد حسن حسن حبيب | B22: =SUM(Sheet2!C22:AF22) -> 9 | C22: =Sheet1!$B22*65 -> 585 | E22: 585
A23: احمد حسن سعد محمد مبروك | B23: =SUM(Sheet2!C23:AF23) -> 2 | C23: =Sheet1!$B23*65 -> 130 | E23: 130
A24: احمد حسن طه محمد | B24: =SUM(Sheet2!C24:AF24) -> 2 | C24: =Sheet1!$B24*65 -> 130 | E24: 130
A25: احمد حسنين ابراهيم | B25: =SUM(Sheet2!C25:AF25) -> 19 | C25: =Sheet1!$B25*65 -> 1235 | E25: 1235
A26: احمد حسين مبروك حسين | B26: =SUM(Sheet2!C26:AF26) -> 6 | C26: =Sheet1!$B26*65 -> 390 | E26: 390
A27: احمد خليل عثمان البربري | B27: =SUM(Sheet2!C27:AF27) -> 1 | C27: =Sheet1!$B27*65 -> 65 | E27: 65
A28: احمد خميس محمود عبدالنبي | B28: =SUM(Sheet2!C28:AF28) -> 44 | C28: =Sheet1!$B28*65 -> 2860 | E28: 2860
A29: احمد رجب مرشدي محمد علي | B29: =SUM(Sheet2!C29:AF29) -> 17 | C29: =Sheet1!$B29*65 -> 1105 | E29: 1105
A30: احمد رشاد عيسي محمد | B30: =SUM(Sheet2!C30:AF30) -> 6 | C30: =Sheet1!$B30*65 -> 390 | E30: 390
A31: احمد رضا حلمي عبدالوهاب | B31: =SUM(Sheet2!C31:AF31) -> 6 | C31: =Sheet1!$B31*65 -> 390 | E31: 390
A32: احمد زغلول احمد القماش | B32: =SUM(Sheet2!C32:AF32) -> 8 | C32: =Sheet1!$B32*65 -> 520 | E32: 520
A33: احمد سامي السيد احمد | B33: =SUM(Sheet2!C33:AF33) -> 4 | C33: =Sheet1!$B33*65 -> 260 | E33: 260
A34: احمد سلامه رمضان | B34: =SUM(Sheet2!C34:AF34) -> 6 | C34: =Sheet1!$B34*65 -> 390 | E34: 390
A35: احمد صلاح محمود علي | B35: =SUM(Sheet2!C35:AF35) -> 22 | C35: =Sheet1!$B35*65 -> 1430 | E35: 1430
A36: احمد عادل فتحي محمد | B36: =SUM(Sheet2!C36:AF36) -> 1 | C36: =Sheet1!$B36*65 -> 65 | E36: 65
A37: احمد عبدالباسط محمد الطباخ | B37: =SUM(Sheet2!C37:AF37) -> 1 | C37: =Sheet1!$B37*65 -> 65 | E37: 65
A38: احمد عبدالتواب احمد سالمان | B38: =SUM(Sheet2!C38:AF38) -> 5 | C38: =Sheet1!$B38*65 -> 325 | E38: 325
A39: احمد عبدالحميد حسن | B39: =SUM(Sheet2!C39:AF39) -> 10 | C39: =Sheet1!$B39*65 -> 650 | E39: 650
A40: احمد عبدالحميد عبدالمنصف | B40: =SUM(Sheet2!C40:AF40) -> 1 | C40: =Sheet1!$B40*65 -> 65 | E40: 65
A41: احمد عبدالرحمن حسن | B41: =SUM(Sheet2!C41:AF41) -> 0 | C41: =Sheet1!$B41*65 -> 0 | E41: 0
A42: احمد عبدالعزيز عبدالمقصود | B42: =SUM(Sheet2!C42:AF42) -> 45 | C42: =Sheet1!$B42*65 -> 2925 | E42: 2925
A43: احمد عبدالله كامل عبدالعزيز | B43: =SUM(Sheet2!C43:AF43) -> 1 | C43: =Sheet1!$B43*65 -> 65 | E43: 65
A44: احمد عبدالمولي محمد عبدالغفار | B44: =SUM(Sheet2!C44:AF44) -> 1 | C44: =Sheet1!$B44*65 -> 65 | E44: 65
A45: احمد فتحي ابراهيم سلامه | B45: =SUM(Sheet2!C45:AF45) -> 17 | C45: =Sheet1!$B45*65 -> 1105 | E45: 1105
A46: احمد فهمي علاء عبدالسلام | B46: =SUM(Sheet2!C46:AF46) -> 1 | C46: =Sheet1!$B46*65 -> 65 | E46: 65
A47: احمد فهمي علي سلام | B47: =SUM(Sheet2!C47:AF47) -> 2 | C47: =Sheet1!$B47*65 -> 130 | E47: 130
A48: احمد مجدي احمد الشرقاوي | B48: =SUM(Sheet2!C48:AF48) -> 2 | C48: =Sheet1!$B48*65 -> 130 | E48: 130
A49: احمد محسن سعد محمد مبروك | B49: =SUM(Sheet2!C49:AF49) -> 18 | C49: =Sheet1!$B49*65 -> 1170 | E49: 1170
A50: احمد محمد احمد حسن | B50: =SUM(Sheet2!C50:AF50) -> 21 | C50: =Sheet1!$B50*65 -> 1365 | E50: 1365
A51: احمد محمد جاد الضي | B51: =SUM(Sheet2!C51:AF51) -> 1 | C51: =Sheet1!$B51*65 -> 65 | E51: 65
A52: احمد محمد جمعه علي موسي | B52: =SUM(Sheet2!C52:AF52) -> 7 | C52: =Sheet1!$B52*65 -> 455 | E52: 455
A53: احمد محمد حمد عبدالسيد | B53: =SUM(Sheet2!C53:AF53) -> 27 | C53: =Sheet1!$B53*65 -> 1755 | E53: 1755
A54: احمد محمد عبدالعزيز زنون | B54: =SUM(Sheet2!C54:AF54) -> 2 | C54: =Sheet1!$B54*65 -> 130 | E54: 130
A55: احمد محمد عبدالفتاح اسماعيل | B55: =SUM(Sheet2!C55:AF55) -> 8 | C55: =Sheet1!$B55*65 -> 520 | E55: 520
A56: احمد محمد عبدالله سيد احمد | B56: =SUM(Sheet2!C56:AF56) -> 13 | C56: =Sheet1!$B56*65 -> 845 | E56: 845
A57: احمد محمد عبدالله محمد | B57: =SUM(Sheet2!C57:AF57) -> 2 | C57: =Sheet1!$B57*65 -> 130 | E57: 130
A58: احمد محمد عبدالمقصود | B58: =SUM(Sheet2!C58:AF58) -> 2 | C58: =Sheet1!$B58*65 -> 130 | E58: 130
A59: احمد محمد عبدالمنعم عثمان الجندي | B59: =SUM(Sheet2!C59:AF59) -> 3 | C59: =Sheet1!$B59*65 -> 195 | E59: 195
A60: احمد محمد علي محمد علي | B60: =SUM(Sheet2!C60:AF60) -> 3 | C60: =Sheet1!$B60*65 -> 195 | E60: 195
A61: احمد محمد محمد زيدان | B61: =SUM(Sheet2!C61:AF61) -> 9 | C61: =Sheet1!$B61*65 -> 585 | E61: 585
A62: احمد محمد محمد عبدالسيد | B62: =SUM(Sheet2!C62:AF62) -> 2 | C62: =Sheet1!$B62*65 -> 130 | E62: 130
A63: احمد محمود احمد حبيب | B63: =SUM(Sheet2!C63:AF63) -> 6 | C63: =Sheet1!$B63*65 -> 390 | E63: 390
A64: احمد محمود عبدالغفار | B64: =SUM(Sheet2!C64:AF64) -> 7 | C64: =Sheet1!$B64*65 -> 455 | E64: 455
A65: احمد محمود محمد حبيش | B65: =SUM(Sheet2!C65:AF65) -> 2 | C65: =Sheet1!$B65*65 -> 130 | E65: 130
A66: احمد محمود محمد حسين | B66: =SUM(Sheet2!C66:AF66) -> 16 | C66: =Sheet1!$B66*65 -> 1040 | E66: 1040
A67: احمد محمود مصطفي علي | B67: =SUM(Sheet2!C67:AF67) -> 29 | C67: =Sheet1!$B67*65 -> 1885 | E67: =$C67-$D67 -> 1885
A68: احمد مرزوق عبدالحفيظ امين | B68: =SUM(Sheet2!C68:AF68) -> 1 | C68: =Sheet1!$B68*65 -> 65 | E68: 65
A69: احمد منير محتمد سعد | B69: =SUM(Sheet2!C69:AF69) -> 19 | C69: =Sheet1!$B69*65 -> 1235 | E69: 1235
A70: ادم رمضان عوض محمد | B70: =SUM(Sheet2!C70:AF70) -> 10 | C70: =Sheet1!$B70*65 -> 650 | E70: 650
A71: ادهم رمضان عوض محمد | B71: =SUM(Sheet2!C71:AF71) -> 17 | C71: =Sheet1!$B71*65 -> 1105 | E71: 1105
A72: اسامه جمعه عبدالعظيم | B72: =SUM(Sheet2!C72:AF72) -> 5 | C72: =Sheet1!$B72*65 -> 325 | E72: 325
A73: اسامه عبدالله محمود عبدالله | B73: =SUM(Sheet2!C73:AF73) -> 19 | C73: =Sheet1!$B73*65 -> 1235 | E73: 1235
A74: اسامه محمد عبدالمنعم الغريب | B74: =SUM(Sheet2!C74:AF74) -> 0 | C74: =Sheet1!$B74*65 -> 0 | E74: 0
A75: اسلام احمد رجب عيد | B75: =SUM(Sheet2!C75:AF75) -> 0 | C75: =Sheet1!$B75*65 -> 0 | E75: 0
A76: اسلام طارق عبدالفتاح | B76: =SUM(Sheet2!C76:AF76) -> 2 | C76: =Sheet1!$B76*65 -> 130 | E76: 130
A77: اسلام محمد عبدالرحيم | B77: =SUM(Sheet2!C77:AF77) -> 44 | C77: =Sheet1!$B77*65 -> 2860 | E77: 2860
A78: اسلام محمود ابراهيم حسن | B78: =SUM(Sheet2!C78:AF78) -> 33 | C78: =Sheet1!$B78*65 -> 2145 | E78: 2145
A79: اسلام مسعد عبدالعزيزسليمان | B79: =SUM(Sheet2!C79:AF79) -> 5 | C79: =Sheet1!$B79*65 -> 325 | E79: 325
A80: اسلام مصطفي علي ابوالحديد | B80: =SUM(Sheet2!C80:AF80) -> 4 | C80: =Sheet1!$B80*65 -> 260 | E80: 260
A81: اسلام مصطفي محمد عبدالعزيز | B81: =SUM(Sheet2!C81:AF81) -> 36 | C81: =Sheet1!$B81*65 -> 2340 | E81: 2340
A82: اسماعيل احمد محمود احمد | B82: =SUM(Sheet2!C82:AF82) -> 26 | C82: =Sheet1!$B82*65 -> 1690 | E82: 1690
A83: اسماعيل محمد اسماعيل الطنطي | B83: =SUM(Sheet2!C83:AF83) -> 36 | C83: =Sheet1!$B83*65 -> 2340 | E83: 2340
A84: اسماعيل مشحوت محمد عيد | B84: =SUM(Sheet2!C84:AF84) -> 26 | C84: =Sheet1!$B84*65 -> 1690 | E84: 1690
A85: اشرف صادق عطيه | B85: =SUM(Sheet2!C85:AF85) -> 3 | C85: =Sheet1!$B85*65 -> 195 | E85: 195
A86: اكرامي محمد مجاور حموده | B86: =SUM(Sheet2!C86:AF86) -> 15 | C86: =Sheet1!$B86*65 -> 975 | E86: 975
A87: اكرامي محمد محمد موسي | B87: =SUM(Sheet2!C87:AF87) -> 6 | C87: =Sheet1!$B87*65 -> 390 | E87: 390
A88: السيد عبدالله عمر مصباح | B88: =SUM(Sheet2!C88:AF88) -> 5 | C88: =Sheet1!$B88*65 -> 325 | E88: 325
A89: السيد مبارك السيد علي الكسبي | B89: =SUM(Sheet2!C89:AF89) -> 7 | C89: =Sheet1!$B89*65 -> 455 | E89: 455
A90: السيد محمود احمد عبداللطيف | B90: =SUM(Sheet2!C90:AF90) -> 14 | C90: =Sheet1!$B90*65 -> 910 | E90: 910
A91: السيد مسعود السيد محمد | B91: =SUM(Sheet2!C91:AF91) -> 11 | C91: =Sheet1!$B91*65 -> 715 | E91: 715
A92: الشحات حميده مبروك اسماعيل | B92: =SUM(Sheet2!C92:AF92) -> 3 | C92: =Sheet1!$B92*65 -> 195 | E92: 195
A93: انس سعد مصطفي سلامه | B93: =SUM(Sheet2!C93:AF93) -> 7 | C93: =Sheet1!$B93*65 -> 455 | E93: 455
A94: انور عبدالسلام احمد العجوز | B94: =SUM(Sheet2!C94:AF94) -> 26 | C94: =Sheet1!$B94*65 -> 1690 | E94: 1690
A95: ايمن السيد محمد ابوزيد | B95: =SUM(Sheet2!C95:AF95) -> 2 | C95: =Sheet1!$B95*65 -> 130 | E95: 130
A96: ايمن جمال السيد السيد مشحوت | B96: =SUM(Sheet2!C96:AF96) -> 27 | C96: =Sheet1!$B96*65 -> 1755 | E96: 1755
A97: ايمن عبدالعزيز محمد زايد | B97: =SUM(Sheet2!C97:AF97) -> 1 | C97: =Sheet1!$B97*65 -> 65 | E97: 65
A98: ايمن محمود هاشم محمود | B98: =SUM(Sheet2!C98:AF98) -> 3 | C98: =Sheet1!$B98*65 -> 195 | E98: 195
A99: ايهاب حسن عبدالنطلب غنيم | B99: =SUM(Sheet2!C99:AF99) -> 5 | C99: =Sheet1!$B99*65 -> 325 | E99: 325
A100: ايهاب فتحي مصطفي | B100: =SUM(Sheet2!C100:AF100) -> 0 | C100: =Sheet1!$B100*65 -> 0 | E100: 0
A101: باسم فاروق محمود همام | B101: =SUM(Sheet2!C101:AF101) -> 29 | C101: =Sheet1!$B101*65 -> 1885 | E101: 1885
A102: باسم نصر ابراهيم اسماعيل | B102: =SUM(Sheet2!C102:AF102) -> 13 | C102: =Sheet1!$B102*65 -> 845 | E102: 845
A103: بدري عبدالله بدري عبدالله | B103: =SUM(Sheet2!C103:AF103) -> 6 | C103: =Sheet1!$B103*65 -> 390 | E103: 390
A104: بلال جمعه عمر امين | B104: =SUM(Sheet2!C104:AF104) -> 19 | C104: =Sheet1!$B104*65 -> 1235 | E104: 1235
A105: بلال رزق عبدالعزيز | B105: =SUM(Sheet2!C105:AF105) -> 19 | C105: =Sheet1!$B105*65 -> 1235 | E105: 1235
A106: بلال عبدالعزيز احمد | B106: =SUM(Sheet2!C106:AF106) -> 1 | C106: =Sheet1!$B106*65 -> 65 | E106: 65
A107: بلال عطيه على احمد | B107: =SUM(Sheet2!C107:AF107) -> 30 | C107: =Sheet1!$B107*65 -> 1950 | E107: 1950
A108: بلال محمد عبدالتواب | B108: =SUM(Sheet2!C108:AF108) -> 1 | C108: =Sheet1!$B108*65 -> 65 | E108: 65
A109: بلال محمد عبدالعزيز محمد علي | B109: =SUM(Sheet2!C109:AF109) -> 47 | C109: =Sheet1!$B109*65 -> 3055 | E109: 3055
A110: بيشوي رضا جرجس سعد | B110: =SUM(Sheet2!C110:AF110) -> 13 | C110: =Sheet1!$B110*65 -> 845 | E110: 845
A111: جابر صبري محمود اسماعيل | B111: =SUM(Sheet2!C111:AF111) -> 1 | C111: =Sheet1!$B111*65 -> 65 | E111: 65
A112: جاد رزق عبدالعزيز احمد شعيشع | B112: =SUM(Sheet2!C112:AF112) -> 1 | C112: =Sheet1!$B112*65 -> 65 | E112: 65
A113: جرجس موريس وهيب | B113: =SUM(Sheet2!C113:AF113) -> 1 | C113: =Sheet1!$B113*65 -> 65 | E113: 65
A114: جمعه حمدي زكي محمد | B114: =SUM(Sheet2!C114:AF114) -> 10 | C114: =Sheet1!$B114*65 -> 650 | E114: 650
A115: حازم عبدالجليل احمد | B115: =SUM(Sheet2!C115:AF115) -> 2 | C115: =Sheet1!$B115*65 -> 130 | E115: 130
A116: حسام عصام فتحي محمد | B116: =SUM(Sheet2!C116:AF116) -> 4 | C116: =Sheet1!$B116*65 -> 260 | E116: 260
A117: حسام فتحي احمد الشامي | B117: =SUM(Sheet2!C117:AF117) -> 4 | C117: =Sheet1!$B117*65 -> 260 | E117: 260
A118: حسام كريم ابراهيم السيد | B118: =SUM(Sheet2!C118:AF118) -> 3 | C118: =Sheet1!$B118*65 -> 195 | E118: 195
A119: حسام محمد محمود يوسف | B119: =SUM(Sheet2!C119:AF119) -> 4 | C119: =Sheet1!$B119*65 -> 260 | E119: 260
A120: حسام نبيل محمود | B120: =SUM(Sheet2!C120:AF120) -> 3 | C120: =Sheet1!$B120*65 -> 195 | E120: 195
A121: حسب النبي سعيد فتحي | B121: =SUM(Sheet2!C121:AF121) -> 20 | C121: =Sheet1!$B121*65 -> 1300 | E121: 1300
A122: حسن الحسيني مسعد | B122: =SUM(Sheet2!C122:AF122) -> 6 | C122: =Sheet1!$B122*65 -> 390 | E122: 390
A123: حسن رمضان السيد سليم | B123: =SUM(Sheet2!C123:AF123) -> 1 | C123: =Sheet1!$B123*65 -> 65 | E123: 65
A124: حسن سامي سعيد | B124: =SUM(Sheet2!C124:AF124) -> 4 | C124: =Sheet1!$B124*65 -> 260 | E124: 260
A125: حسن سامي سعيد الكر | B125: =SUM(Sheet2!C125:AF125) -> 2 | C125: =Sheet1!$B125*65 -> 130 | E125: 130
A126: حسن عبدالغفار محمد عبدالعليم | B126: =SUM(Sheet2!C126:AF126) -> 4 | C126: =Sheet1!$B126*65 -> 260 | E126: 260
A127: حسني عزالدين عبدالفضيل | B127: =SUM(Sheet2!C127:AF127) -> 19 | C127: =Sheet1!$B127*65 -> 1235 | E127: 1235
A128: حسين عبدالغنى السيد محمد | B128: =SUM(Sheet2!C128:AF128) -> 26 | C128: =Sheet1!$B128*65 -> 1690 | E128: 1690
A129: حماده رجب عبدالحفيظ | B129: =SUM(Sheet2!C129:AF129) -> 1 | C129: =Sheet1!$B129*65 -> 65 | E129: 65
A130: حماده مرعي سعد محمد | B130: =SUM(Sheet2!C130:AF130) -> 1 | C130: =Sheet1!$B130*65 -> 65 | E130: 65
A131: خالد عوض السيد عبدالرحمن | B131: =SUM(Sheet2!C131:AF131) -> 13 | C131: =Sheet1!$B131*65 -> 845 | E131: =$C131-$D131 -> 845
A132: خالد محمود محمد عبداللطيف | B132: =SUM(Sheet2!C132:AF132) -> 16 | C132: =Sheet1!$B132*65 -> 1040 | E132: 1040
A133: خيري احمد عبدالغني هنداوي | B133: =SUM(Sheet2!C133:AF133) -> 7 | C133: =Sheet1!$B133*65 -> 455 | E133: 455
A134: درويش الجوهري ابراهيم البري | B134: =SUM(Sheet2!C134:AF134) -> 5 | C134: =Sheet1!$B134*65 -> 325 | E134: 325
A135: درويش رافت درويش | B135: =SUM(Sheet2!C135:AF135) -> 45 | C135: =Sheet1!$B135*65 -> 2925 | E135: 2925
A136: راجي محمد الصباحي | B136: =SUM(Sheet2!C136:AF136) -> 7 | C136: =Sheet1!$B136*65 -> 455 | E136: 455
A137: راعي سيد علي بربر | B137: =SUM(Sheet2!C137:AF137) -> 19 | C137: =Sheet1!$B137*65 -> 1235 | E137: 1235
A138: رافت اشرف رفعت امين | B138: =SUM(Sheet2!C138:AF138) -> 13 | C138: =Sheet1!$B138*65 -> 845 | E138: 845
A139: رافت كامل عبدالله عبدالعزيز | B139: =SUM(Sheet2!C139:AF139) -> 1 | C139: =Sheet1!$B139*65 -> 65 | E139: 65
A140: رزق علاء رجب نصر عيسي | B140: =SUM(Sheet2!C140:AF140) -> 3 | C140: =Sheet1!$B140*65 -> 195 | E140: 195
A141: رزق محمد رزق اسماعيل | B141: =SUM(Sheet2!C141:AF141) -> 1 | C141: =Sheet1!$B141*65 -> 65 | E141: 65
A142: رضا غريب صقر محمد | B142: =SUM(Sheet2!C142:AF142) -> 1 | C142: =Sheet1!$B142*65 -> 65 | E142: 65
A143: رضا معوض عباس | B143: =SUM(Sheet2!C143:AF143) -> 2 | C143: =Sheet1!$B143*65 -> 130 | E143: 130
A144: رضوان شحاته احمد | B144: =SUM(Sheet2!C144:AF144) -> 1 | C144: =Sheet1!$B144*65 -> 65 | E144: 65
A145: رفعت اشرف رفعت امين | B145: =SUM(Sheet2!C145:AF145) -> 12 | C145: =Sheet1!$B145*65 -> 780 | E145: 780
A146: زكريا عبدالفتاح عبدالحميد | B146: =SUM(Sheet2!C146:AF146) -> 26 | C146: =Sheet1!$B146*65 -> 1690 | E146: 1690
A147: زياد سالم احمد فراج | B147: =SUM(Sheet2!C147:AF147) -> 10 | C147: =Sheet1!$B147*65 -> 650 | E147: 650
A148: سامح انور طلبه عطاالله | B148: =SUM(Sheet2!C148:AF148) -> 9 | C148: =Sheet1!$B148*65 -> 585 | E148: 585
A149: سامح عابدين محمد علي | B149: =SUM(Sheet2!C149:AF149) -> 5 | C149: =Sheet1!$B149*65 -> 325 | E149: 325
A150: سامي صبري جبر علي | B150: =SUM(Sheet2!C150:AF150) -> 16 | C150: =Sheet1!$B150*65 -> 1040 | E150: 1040
A151: سامي عبدالله محمد سيد احمد | B151: =SUM(Sheet2!C151:AF151) -> 11 | C151: =Sheet1!$B151*65 -> 715 | E151: 715
A152: سامي محمد عبده السيسي | B152: =SUM(Sheet2!C152:AF152) -> 31 | C152: =Sheet1!$B152*65 -> 2015 | E152: 2015
A153: سعد محمد سعد خرش | B153: =SUM(Sheet2!C153:AF153) -> 1 | C153: =Sheet1!$B153*65 -> 65 | E153: 65
A154: سعودي محمد طلبه محمد | B154: =SUM(Sheet2!C154:AF154) -> 1 | C154: =Sheet1!$B154*65 -> 65 | E154: 65
A155: سعودي محمد عطيه | B155: =SUM(Sheet2!C155:AF155) -> 33 | C155: =Sheet1!$B155*65 -> 2145 | E155: 2145
A156: سعيد علي عبدالهادي | B156: =SUM(Sheet2!C156:AF156) -> 18 | C156: =Sheet1!$B156*65 -> 1170 | E156: 1170
A157: سليم اسماعيل بيومي سليم | B157: =SUM(Sheet2!C157:AF157) -> 7 | C157: =Sheet1!$B157*65 -> 455 | E157: 455
A158: سليم عمار رحصان عيد | B158: =SUM(Sheet2!C158:AF158) -> 0 | C158: =Sheet1!$B158*65 -> 0 | E158: 0
A159: سيد فاروق فؤاد سعد | B159: =SUM(Sheet2!C159:AF159) -> 3 | C159: =Sheet1!$B159*65 -> 195 | E159: 195
A160: شامل مبروك حسن محمد | B160: =SUM(Sheet2!C160:AF160) -> 1 | C160: =Sheet1!$B160*65 -> 65 | E160: 65
A161: شريف احمد محمد عبدالله | B161: =SUM(Sheet2!C161:AF161) -> 19 | C161: =Sheet1!$B161*65 -> 1235 | E161: 1235
A162: شريف عبدالعزيز علي هندي | B162: =SUM(Sheet2!C162:AF162) -> 7 | C162: =Sheet1!$B162*65 -> 455 | E162: 455
A163: شريف عمر امين محمد | B163: =SUM(Sheet2!C163:AF163) -> 21 | C163: =Sheet1!$B163*65 -> 1365 | E163: 1365
A164: شعبان الشحات المتولي الشوكي | B164: =SUM(Sheet2!C164:AF164) -> 1 | C164: =Sheet1!$B164*65 -> 65 | E164: 65
A165: شعبان بلبل الشحات المتولي | B165: =SUM(Sheet2!C165:AF165) -> 43 | C165: =Sheet1!$B165*65 -> 2795 | E165: 2795
A166: شعبان حمدي شعبان الهليس | B166: =SUM(Sheet2!C166:AF166) -> 1 | C166: =Sheet1!$B166*65 -> 65 | E166: 65
A167: شعبان عبدالكريم علواني عبدالكريم | B167: =SUM(Sheet2!C167:AF167) -> 6 | C167: =Sheet1!$B167*65 -> 390 | E167: 390
A168: شكر صابر ابراهيم رضوان | B168: =SUM(Sheet2!C168:AF168) -> 21 | C168: =Sheet1!$B168*65 -> 1365 | E168: 1365
A169: شهاب ابراهيم فرج عبدالعزيز | B169: =SUM(Sheet2!C169:AF169) -> 1 | C169: =Sheet1!$B169*65 -> 65 | E169: 65
A170: صابر صبري محمود اسماعيل | B170: =SUM(Sheet2!C170:AF170) -> 11 | C170: =Sheet1!$B170*65 -> 715 | E170: 715
A171: صادق عيد السيد عبدالرحمن | B171: =SUM(Sheet2!C171:AF171) -> 2 | C171: =Sheet1!$B171*65 -> 130 | E171: 130
A172: صبحي توفيق السيد | B172: =SUM(Sheet2!C172:AF172) -> 18 | C172: =Sheet1!$B172*65 -> 1170 | E172: 1170
A173: ضياء محمد محمد شحاته بحيري | B173: =SUM(Sheet2!C173:AF173) -> 1 | C173: =Sheet1!$B173*65 -> 65 | E173: 65
A174: طارق عبدالفتاح السعيد عبدالباقي | B174: =SUM(Sheet2!C174:AF174) -> 16 | C174: =Sheet1!$B174*65 -> 1040 | E174: 1040
A175: طارق عرفه عنتر زراع | B175: =SUM(Sheet2!C175:AF175) -> 19 | C175: =Sheet1!$B175*65 -> 1235 | E175: 1235
A176: طارق محمود محمود عبدالمعطي | B176: =SUM(Sheet2!C176:AF176) -> 28 | C176: =Sheet1!$B176*65 -> 1820 | E176: 1820
A177: طه حسن حسن الهندي | B177: =SUM(Sheet2!C177:AF177) -> 38 | C177: =Sheet1!$B177*65 -> 2470 | E177: 2470
A178: طه عيد عبدالله شحاته | B178: =SUM(Sheet2!C178:AF178) -> 12 | C178: =Sheet1!$B178*65 -> 780 | E178: 780
A179: عاصم السيد عبدالرحمن الدسوقي | B179: =SUM(Sheet2!C179:AF179) -> 2 | C179: =Sheet1!$B179*65 -> 130 | E179: 130
A180: عاطف ابراهيم حليم مشحوت | B180: =SUM(Sheet2!C180:AF180) -> 6 | C180: =Sheet1!$B180*65 -> 390 | E180: 390
A181: عاطف محمد محمد دراز | B181: =SUM(Sheet2!C181:AF181) -> 20 | C181: =Sheet1!$B181*65 -> 1300 | E181: 1300
A182: عامر ابراهيم عامر بدوي | B182: =SUM(Sheet2!C182:AF182) -> 7 | C182: =Sheet1!$B182*65 -> 455 | E182: 455
A183: عامر حبشي محمد حبشي | B183: =SUM(Sheet2!C183:AF183) -> 40 | C183: =Sheet1!$B183*65 -> 2600 | E183: 2600
A184: عبدالحميد غريب عبدالحميد | B184: =SUM(Sheet2!C184:AF184) -> 24 | C184: =Sheet1!$B184*65 -> 1560 | E184: 1560
A185: عبدالرحمن ابراهيم عبدالغني الطوخي | B185: =SUM(Sheet2!C185:AF185) -> 3 | C185: =Sheet1!$B185*65 -> 195 | E185: 195
A186: عبدالرحمن ابراهيم عيد الفقي | B186: =SUM(Sheet2!C186:AF186) -> 3 | C186: =Sheet1!$B186*65 -> 195 | E186: 195
A187: عبدالرحمن سالم عبدالرحمن | B187: =SUM(Sheet2!C187:AF187) -> 13 | C187: =Sheet1!$B187*65 -> 845 | E187: 845
A188: عبدالرحمن عبداللاه عبدالعزيز طه | B188: =SUM(Sheet2!C188:AF188) -> 9 | C188: =Sheet1!$B188*65 -> 585 | E188: 585
A189: عبدالرحمن محمد زياد محمد | B189: =SUM(Sheet2!C189:AF189) -> 2 | C189: =Sheet1!$B189*65 -> 130 | E189: 130
A190: عبدالستارعيدعبدالستارعيسي | B190: =SUM(Sheet2!C190:AF190) -> 11 | C190: =Sheet1!$B190*65 -> 715 | E190: 715
A191: عبدالسلام فتحي شلبي | B191: =SUM(Sheet2!C191:AF191) -> 8 | C191: =Sheet1!$B191*65 -> 520 | E191: 520
A192: عبدالسلام فتحي محمد | B192: =SUM(Sheet2!C192:AF192) -> 2 | C192: =Sheet1!$B192*65 -> 130 | E192: 130
A193: عبدالسلام مصطفي علي | B193: =SUM(Sheet2!C193:AF193) -> 1 | C193: =Sheet1!$B193*65 -> 65 | E193: 65
A194: عبدالعزيز حمدي عبدالعزيز محمد | B194: =SUM(Sheet2!C194:AF194) -> 1 | C194: =Sheet1!$B194*65 -> 65 | E194: 65
A195: عبدالغفار محمد منير | B195: =SUM(Sheet2!C195:AF195) -> 10 | C195: =Sheet1!$B195*65 -> 650 | E195: =$C195-$D195 -> 650
A196: عبدالغفور محمد عبالغفور دره | B196: =SUM(Sheet2!C196:AF196) -> 5 | C196: =Sheet1!$B196*65 -> 325 | E196: 325
A197: عبدالغني جمال عاشور محمد | B197: =SUM(Sheet2!C197:AF197) -> 8 | C197: =Sheet1!$B197*65 -> 520 | E197: 520
A198: عبدالفتاح جمعه عبدالحكيم جمعه | B198: =SUM(Sheet2!C198:AF198) -> 3 | C198: =Sheet1!$B198*65 -> 195 | E198: 195
A199: عبدالفتاح عبدالقوي عبدالفتاح | B199: =SUM(Sheet2!C199:AF199) -> 22 | C199: =Sheet1!$B199*65 -> 1430 | E199: 1430
A200: عبدالكريم محمد محمود | B200: =SUM(Sheet2!C200:AF200) -> 1 | C200: =Sheet1!$B200*65 -> 65 | E200: 65
... 575 more rows

Sheet Sheet2 (hidden)
A1: كود الموظف | B1: اسم الموظف | C1: 2019-03-02 | D1: 2019-03-03 | E1: 2019-03-04 | F1: 2019-03-05 | G1: 2019-03-06 | H1: 2019-03-07 | I1: 2019-03-08 | J1: 2019-03-09 | K1: 2019-03-10 | L1: 2019-03-11 | M1: 2019-03-12 | N1: 2019-03-13 | O1: 2019-03-14 | P1: 2019-03-15 | Q1: 2019-03-16 | R1: 2019-03-17 | S1: 2019-03-18 | T1: 2019-03-19 | U1: 2019-03-20 | V1: 2019-03-21 | W1: 2019-03-22 | X1: 2019-03-23 | Y1: 2019-03-24 | Z1: 2019-03-25 | AA1: 2019-03-26 | AB1: 2019-03-27 | AC1: 2019-03-28 | AD1: 2019-03-29 | AE1: 2019-03-30 | AF1: 2019-03-31 | AG1: اجمالي
B2: ابانوب بشاره نصر بشاره | C2: 1 | D2: 1 | E2: 1
B3: ابراهيم احمد محمد عيسي | H3: 1 | I3: 2
B4: ابراهيم عادل ابراهيم جباره | D4: 1 | F4: 1 | G4: 1 | H4: 1 | K4: 1 | L4: 1 | M4: 1 | N4: 1 | O4: 1 | R4: 1 | S4: 1 | U4: 1 | V4: 1 | Y4: 1 | Z4: 1 | AC4: 1 | AF4: 1
B5: ابراهيم عبدالحميد اسماعيل | K5: 1
B6: ابراهيم عبدالله محمد علي | X6: 2 | Y6: 1 | AB6: 1 | AE6: 2
B7: ابراهيم عقيلي ابراهيم حماد | N7: 1 | O7: 1 | P7: 2 | Q7: 2 | S7: 2 | U7: 2 | V7: 1 | W7: 2 | X7: 2 | Y7: 1
B8: ابراهيم كامل علي عويان | C8: 1 | D8: 1 | E8: 1 | F8: 1 | G8: 1 | H8: 1 | I8: 1 | J8: 1 | K8: 1 | L8: 1 | M8: 1 | N8: 1 | P8: 1 | Q8: 1 | S8: 1 | T8: 1 | U8: 1 | X8: 1 | Y8: 1 | Z8: 1 | AA8: 1 | AB8: 1 | AD8: 1 | AE8: 1 | AF8: 1
B9: ابراهيم محمد ابراهيم جاد | R9: 1 | S9: 1 | V9: 1 | Z9: 1
B10: ابراهيم محمد شعيب علي | AB10: 1 | AC10: 1
B11: ابراهيم يوسف درويش ابراهيم | L11: 1 | M11: 2 | N11: 1 | O11: 1 | P11: 2
B12: ابوالسعود صابر ابوالسعود | Z12: 1
B13: ابوالعلا محمد ابوالعلا | D13: 1 | F13: 1 | G13: 1 | H13: 1 | I13: 1 | J13: 1 | K13: 1 | L13: 2 | M13: 1 | N13: 1 | O13: 2 | Q13: 1 | R13: 1 | S13: 2 | T13: 1 | V13: 2 | Y13: 1 | Z13: 1 | AA13: 1 | AB13: 1 | AC13: 1 | AE13: 2 | AF13: 2
B14: ابوبكر عبدالعزيز عثمان | C14: 1 | D14: 2 | E14: 2 | F14: 2 | G14: 1 | H14: 2 | I14: 2 | J14: 2 | K14: 2 | L14: 2 | M14: 2 | N14: 2 | O14: 1 | P14: 2 | Q14: 2 | R14: 1 | S14: 2 | T14: 2 | U14: 2 | V14: 1 | W14: 2 | X14: 2 | Y14: 2 | Z14: 2 | AA14: 2 | AB14: 1 | AC14: 2 | AD14: 1 | AE14: 2 | AF14: 2
B15: احمد ابو نبوت احمد | N15: 2 | O15: 1 | P15: 1 | Q15: 1 | R15: 2 | S15: 1 | T15: 1 | U15: 1
B16: احمد اشرف محمد حسنين | P16: 2 | Q16: 2 | R16: 1 | S16: 2 | T16: 1 | U16: 2 | V16: 1 | W16: 1 | X16: 2 | Y16: 2 | Z16: 1 | AA16: 1 | AB16: 1 | AC16: 2 | AE16: 1 | AF16: 2
B17: احمد انور محمد الهلوبي | D17: 1 | F17: 1 | O17: 1 | R17: 1 | S17: 1 | W17: 1 | Y17: 1 | Z17: 1
B18: احمد ايمن نبوي | Q18: 1
B19: احمد جلال احمد محارم | C19: 1 | D19: 2 | E19: 1 | F19: 2 | G19: 2 | H19: 1 | I19: 1 | J19: 2 | K19: 2 | L19: 1 | M19: 2 | N19: 2 | O19: 1 | P19: 1 | Q19: 2 | R19: 2 | S19: 1 | T19: 1 | U19: 2 | V19: 1 | W19: 2 | X19: 2 | Y19: 2 | Z19: 2 | AA19: 2 | AB19: 1 | AC19: 2 | AD19: 1 | AE19: 2 | AF19: 1
B20: احمد جمال احمد هلال | E20: 1 | G20: 1 | H20: 1 | I20: 1 | J20: 1 | L20: 1
B21: احمد جمال عيسي حمزه | C21: 1 | D21: 1 | E21: 1 | F21: 1 | G21: 1 | H21: 1 | I21: 2 | J21: 2 | L21: 1 | M21: 1 | N21: 1 | O21: 1 | R21: 1 | X21: 1 | AE21: 1
B22: احمد حسن حسن حبيب | D22: 1 | E22: 1 | F22: 1 | K22: 1 | L22: 1 | M22: 1 | S22: 1 | T22: 1 | Z22: 1
B23: احمد حسن سعد محمد مبروك | G23: 1 | U23: 1
B24: احمد حسن طه محمد | AA24: 1 | AB24: 1
B25: احمد حسنين ابراهيم | C25: 2 | D25: 2 | E25: 1 | F25: 1 | G25: 2 | H25: 1 | I25: 1 | J25: 2 | N25: 1 | Q25: 2 | S25: 1 | U25: 1 | V25: 1 | X25: 1
B26: احمد حسين مبروك حسين | D26: 1 | F26: 1 | G26: 1 | I26: 1 | K26: 1 | L26: 1
B27: احمد خليل عثمان البربري | C27: 1
B28: احمد خميس محمود عبدالنبي | C28: 2 | D28: 2 | E28: 1 | F28: 1 | G28: 2 | H28: 1 | I28: 1 | J28: 2 | K28: 2 | L28: 2 | M28: 1 | N28: 2 | O28: 1 | P28: 2 | Q28: 2 | R28: 1 | S28: 2 | T28: 1 | U28: 2 | V28: 1 | W28: 1 | X28: 2 | Y28: 1 | Z28: 2 | AA28: 1 | AB28: 1 | AC28: 1 | AD28: 1 | AE28: 1 | AF28: 2
B29: احمد رجب مرشدي محمد علي | D29: 1 | E29: 1 | F29: 1 | G29: 1 | I29: 1 | L29: 1 | O29: 1 | Q29: 1 | S29: 1 | T29: 1 | U29: 1 | W29: 1 | X29: 1 | AB29: 1 | AC29: 1 | AD29: 1 | AE29: 1
B30: احمد رشاد عيسي محمد | X30: 1 | Y30: 1 | AC30: 1 | AE30: 2 | AF30: 1
B31: احمد رضا حلمي عبدالوهاب | F31: 1 | G31: 1 | H31: 1 | I31: 1 | L31: 1 | AB31: 1
B32: احمد زغلول احمد القماش | Z32: 1 | AA32: 1 | AB32: 1 | AC32: 2 | AE32: 1 | AF32: 2
B33: احمد سامي السيد احمد | Y33: 1 | Z33: 1 | AA33: 1 | AB33: 1
B34: احمد سلامه رمضان | C34: 1 | N34: 1 | P34: 2 | Q34: 1 | R34: 1
B35: احمد صلاح محمود علي | D35: 1 | E35: 1 | F35: 1 | G35: 1 | H35: 1 | I35: 1 | J35: 1 | L35: 1 | N35: 1 | O35: 1 | P35: 1 | R35: 1 | T35: 1 | U35: 1 | V35: 1 | W35: 1 | Y35: 1 | Z35: 1 | AA35: 1 | AB35: 1 | AC35: 2
B36: احمد عادل فتحي محمد | R36: 1
B37: احمد عبدالباسط محمد الطباخ | F37: 1
B38: احمد عبدالتواب احمد سالمان | L38: 1 | M38: 1 | AA38: 1 | AB38: 1 | AC38: 1
B39: احمد عبدالحميد حسن | F39: 1 | G39: 1 | H39: 1 | M39: 1 | O39: 1 | T39: 1 | V39: 1 | AB39: 1 | AC39: 1 | AF39: 1
B40: احمد عبدالحميد عبدالمنصف | K40: 1
B41: احمد عبدالرحمن حسن
B42: احمد عبدالعزيز عبدالمقصود | C42: 2 | D42: 2 | E42: 1 | F42: 2 | G42: 2 | H42: 1 | I42: 2 | J42: 2 | K42: 2 | L42: 2 | M42: 1 | N42: 2 | Q42: 1 | R42: 2 | S42: 2 | T42: 1 | U42: 1 | V42: 1 | W42: 2 | X42: 2 | Y42: 2 | Z42: 2 | AA42: 1 | AB42: 2 | AC42: 2 | AE42: 2 | AF42: 1
B43: احمد عبدالله كامل عبدالعزيز | R43: 1
B44: احمد عبدالمولي محمد عبدالغفار | AB44: 1
B45: احمد فتحي ابراهيم سلامه | C45: 1 | D45: 1 | E45: 1 | G45: 1 | J45: 1 | K45: 1 | M45: 1 | N45: 1 | O45: 1 | S45: 1 | T45: 1 | X45: 1 | Z45: 1 | AA45: 1 | AB45: 1 | AE45: 1 | AF45: 1
B46: احمد فهمي علاء عبدالسلام | N46: 1
B47: احمد فهمي علي سلام | O47: 1 | P47: 1
B48: احمد مجدي احمد الشرقاوي | AB48: 1 | AC48: 1
B49: احمد محسن سعد محمد مبروك | E49: 1 | F49: 2 | H49: 1 | L49: 2 | M49: 1 | N49: 2 | S49: 1 | T49: 1 | U49: 1 | W49: 1 | AA49: 1 | AB49: 1 | AE49: 2 | AF49: 1
B50: احمد محمد احمد حسن | C50: 1 | N50: 1 | P50: 1 | Q50: 1 | R50: 2 | S50: 1 | T50: 1 | U50: 1 | V50: 1 | W50: 2 | X50: 1 | Y50: 1 | Z50: 2 | AA50: 1 | AD50: 1 | AE50: 1 | AF50: 2
B51: احمد محمد جاد الضي | AC51: 1
B52: احمد محمد جمعه علي موسي | F52: 1 | M52: 1 | S52: 1 | U52: 1 | Z52: 1 | AA52: 1 | AB52: 1
B53: احمد محمد حمد عبدالسيد | C53: 2 | E53: 1 | F53: 1 | G53: 1 | H53: 2 | J53: 2 | K53: 1 | L53: 1 | M53: 1 | N53: 1 | Q53: 2 | R53: 1 | S53: 1 | T53: 1 | U53: 1 | W53: 1 | X53: 2 | Y53: 1 | Z53: 1 | AE53: 2 | AF53: 1
B54: احمد محمد عبدالعزيز زنون | G54: 1 | H54: 1
B55: احمد محمد عبدالفتاح اسماعيل | G55: 1 | N55: 1 | O55: 1 | U55: 1 | V55: 1 | W55: 1 | AB55: 2
B56: احمد محمد عبدالله سيد احمد | D56: 1 | E56: 1 | F56: 1 | G56: 1 | H56: 1 | J56: 1 | N56: 1 | S56: 1 | T56: 1 | W56: 1 | X56: 1 | Y56: 1 | Z56: 1
B57: احمد محمد عبدالله محمد | AA57: 1 | AD57: 1
B58: احمد محمد عبدالمقصود | U58: 1 | V58: 1
B59: احمد محمد عبدالمنعم عثمان الجندي | Y59: 1 | Z59: 1 | AF59: 1
B60: احمد محمد علي محمد علي | I60: 1 | M60: 1 | AF60: 1
B61: احمد محمد محمد زيدان | E61: 1 | F61: 1 | G61: 1 | H61: 1 | K61: 1 | L61: 1 | O61: 1 | S61: 1 | T61: 1
B62: احمد محمد محمد عبدالسيد | AA62: 1 | AC62: 1
B63: احمد محمود احمد حبيب | U63: 1 | V63: 1 | W63: 2 | X63: 1 | Y63: 1
B64: احمد محمود عبدالغفار | D64: 1 | E64: 1 | G64: 1 | H64: 1 | I64: 1 | J64: 1 | K64: 1
B65: احمد محمود محمد حبيش | U65: 1 | V65: 1
B66: احمد محمود محمد حسين | D66: 1 | E66: 1 | F66: 1 | G66: 1 | H66: 1 | L66: 1 | M66: 1 | O66: 1 | S66: 1 | T66: 1 | Y66: 1 | Z66: 1 | AA66: 1 | AB66: 1 | AC66: 1 | AF66: 1
B67: احمد محمود مصطفي علي | C67: 1 | D67: 1 | G67: 1 | H67: 1 | I67: 1 | J67: 2 | L67: 2 | M67: 2 | N67: 2 | S67: 1 | U67: 1 | V67: 1 | W67: 1 | X67: 2 | AA67: 2 | AB67: 2 | AC67: 2 | AD67: 1 | AE67: 2 | AF67: 1
B68: احمد مرزوق عبدالحفيظ امين | R68: 1
B69: احمد منير محتمد سعد | C69: 1 | D69: 1 | E69: 1 | G69: 1 | I69: 1 | J69: 1 | K69: 1 | L69: 1 | M69: 1 | R69: 1 | T69: 1 | U69: 1 | W69: 1 | X69: 1 | Y69: 1 | AA69: 1 | AB69: 1 | AD69: 1 | AF69: 1
B70: ادم رمضان عوض محمد | C70: 2 | D70: 2 | E70: 2 | F70: 2 | I70: 1 | O70: 1
B71: ادهم رمضان عوض محمد | J71: 2 | K71: 2 | L71: 1 | M71: 2 | N71: 1 | P71: 2 | Q71: 1 | S71: 1 | T71: 1 | U71: 1 | W71: 1 | X71: 2
B72: اسامه جمعه عبدالعظيم | O72: 1 | R72: 1 | T72: 1 | U72: 1 | Z72: 1
B73: اسامه عبدالله محمود عبدالله | Q73: 2 | R73: 1 | S73: 2 | T73: 1 | U73: 1 | V73: 1 | W73: 1 | X73: 2 | Y73: 1 | AA73: 1 | AB73: 1 | AC73: 1 | AD73: 1 | AE73: 2 | AF73: 1
B74: اسامه محمد عبدالمنعم الغريب
B75: اسلام احمد رجب عيد
B76: اسلام طارق عبدالفتاح | U76: 1 | V76: 1
B77: اسلام محمد عبدالرحيم | C77: 2 | D77: 1 | E77: 2 | F77: 2 | G77: 1 | H77: 1 | I77: 1 | J77: 2 | K77: 2 | L77: 2 | M77: 2 | N77: 1 | P77: 2 | Q77: 2 | S77: 2 | T77: 1 | U77: 2 | V77: 1 | W77: 2 | X77: 2 | Y77: 2 | Z77: 1 | AA77: 1 | AB77: 2 | AC77: 1 | AD77: 1 | AE77: 2 | AF77: 1
B78: اسلام محمود ابراهيم حسن | C78: 2 | D78: 2 | E78: 2 | F78: 1 | G78: 1 | M78: 2 | N78: 2 | P78: 2 | Q78: 2 | R78: 1 | S78: 2 | T78: 2 | U78: 1 | Y78: 1 | Z78: 1 | AA78: 2 | AB78: 1 | AC78: 2 | AD78: 1 | AE78: 2 | AF78: 1
B79: اسلام مسعد عبدالعزيزسليمان | Z79: 1 | AA79: 1 | AB79: 1 | AC79: 1 | AF79: 1
B80: اسلام مصطفي علي ابوالحديد | N80: 1 | O80: 1 | U80: 1 | Y80: 1
B81: اسلام مصطفي محمد عبدالعزيز | C81: 1 | D81: 1 | E81: 2 | F81: 1 | G81: 2 | H81: 1 | I81: 1 | J81: 2 | K81: 1 | L81: 1 | M81: 1 | N81: 1 | O81: 1 | P81: 1 | Q81: 1 | R81: 1 | S81: 2 | T81: 1 | U81: 2 | V81: 1 | W81: 1 | X81: 2 | Y81: 1 | Z81: 1 | AA81: 2 | AB81: 1 | AC81: 1 | AE81: 1 | AF81: 1
B82: اسماعيل احمد محمود احمد | C82: 1 | D82: 2 | E82: 2 | F82: 2 | G82: 2 | I82: 1 | J82: 2 | K82: 2 | L82: 1 | M82: 2 | N82: 1 | P82: 2 | Q82: 1 | R82: 1 | S82: 1 | T82: 1 | U82: 1 | W82: 1
B83: اسماعيل محمد اسماعيل الطنطي | D83: 1 | E83: 1 | F83: 2 | G83: 2 | H83: 2 | K83: 2 | L83: 2 | M83: 2 | N83: 2 | O83: 1 | R83: 2 | S83: 2 | T83: 2 | U83: 2 | V83: 1 | AA83: 2 | AB83: 2 | AC83: 2 | AD83: 1 | AE83: 2 | AF83: 1
B84: اسماعيل مشحوت محمد عيد | D84: 1 | E84: 1 | F84: 1 | G84: 1 | H84: 1 | I84: 1 | K84: 1 | L84: 1 | M84: 1 | N84: 1 | O84: 2 | R84: 1 | S84: 1 | T84: 1 | U84: 1 | V84: 2 | W84: 1 | Y84: 1 | Z84: 1 | AA84: 1 | AB84: 1 | AC84: 1 | AF84: 2
B85: اشرف صادق عطيه | D85: 1 | E85: 1 | F85: 1
B86: اكرامي محمد مجاور حموده | D86: 2 | F86: 1 | G86: 1 | H86: 1 | I86: 1 | K86: 1 | L86: 1 | M86: 1 | O86: 1 | P86: 1 | Q86: 1 | S86: 1 | T86: 1 | Y86: 1
B87: اكرامي محمد محمد موسي | G87: 1 | J87: 1 | M87: 1 | S87: 1 | V87: 1 | Y87: 1
B88: السيد عبدالله عمر مصباح | AC88: 1 | AE88: 2 | AF88: 2
B89: السيد مبارك السيد علي الكسبي | AA89: 1 | AB89: 1 | AC89: 2 | AE89: 1 | AF89: 2
B90: السيد محمود احمد عبداللطيف | D90: 1 | E90: 1 | F90: 1 | I90: 1 | M90: 1 | N90: 1 | O90: 1 | S90: 1 | T90: 1 | Y90: 1 | Z90: 1 | AA90: 1 | AB90: 1 | AF90: 1
B91: السيد مسعود السيد محمد | Y91: 1 | Z91: 2 | AA91: 1 | AB91: 2 | AC91: 2 | AE91: 2 | AF91: 1
B92: الشحات حميده مبروك اسماعيل | E92: 1 | G92: 1 | H92: 1
B93: انس سعد مصطفي سلامه | P93: 1 | Q93: 2 | S93: 1 | T93: 1 | U93: 1 | X93: 1
B94: انور عبدالسلام احمد العجوز | D94: 1 | E94: 1 | F94: 1 | G94: 1 | H94: 1 | I94: 1 | J94: 1 | K94: 1 | L94: 1 | M94: 1 | N94: 1 | P94: 1 | Q94: 1 | R94: 1 | S94: 1 | T94: 1 | U94: 1 | V94: 1 | W94: 1 | X94: 1 | Y94: 1 | AA94: 1 | AB94: 1 | AC94: 1 | AE94: 1 | AF94: 1
B95: ايمن السيد محمد ابوزيد | D95: 2
B96: ايمن جمال السيد السيد مشحوت | C96: 1 | D96: 1 | E96: 1 | F96: 1 | G96: 1 | H96: 1 | L96: 1 | M96: 1 | N96: 1 | O96: 1 | P96: 1 | R96: 1 | S96: 1 | T96: 1 | U96: 1 | V96: 1 | W96: 1 | X96: 1 | Y96: 1 | Z96: 1 | AA96: 1 | AB96: 1 | AC96: 1 | AE96: 2 | AF96: 2
B97: ايمن عبدالعزيز محمد زايد | X97: 1
B98: ايمن محمود هاشم محمود | R98: 1 | AA98: 1 | AB98: 1
B99: ايهاب حسن عبدالنطلب غنيم | E99: 1 | F99: 1 | G99: 1 | H99: 1 | I99: 1
B100: ايهاب فتحي مصطفي
B101: باسم فاروق محمود همام | D101: 2 | E101: 2 | F101: 2 | G101: 2 | I101: 1 | J101: 2 | K101: 1 | L101: 1 | N101: 1 | P101: 1 | Q101: 2 | R101: 1 | T101: 1 | U101: 1 | W101: 1 | X101: 2 | Y101: 1 | Z101: 1 | AB101: 1 | AE101: 2 | AF101: 1
B102: باسم نصر ابراهيم اسماعيل | R102: 1 | S102: 1 | T102: 1 | U102: 1 | W102: 1 | X102: 1 | Y102: 1 | Z102: 1 | AA102: 1 | AB102: 1 | AD102: 1 | AE102: 1 | AF102: 1
B103: بدري عبدالله بدري عبدالله | C103: 2 | D103: 1 | F103: 1 | H103: 1 | I103: 1
B104: بلال جمعه عمر امين | C104: 1 | D104: 1 | J104: 1 | K104: 1 | M104: 1 | N104: 1 | Q104: 1 | R104: 2 | S104: 2 | T104: 1 | U104: 1 | X104: 1 | Y104: 1 | AB104: 1 | AC104: 1 | AE104: 1 | AF104: 1
B105: بلال رزق عبدالعزيز | C105: 2 | D105: 2 | E105: 2 | G105: 1 | P105: 1 | Q105: 2 | R105: 1 | S105: 1 | T105: 1 | U105: 1 | W105: 1 | X105: 2 | Y105: 1 | Z105: 1
B106: بلال عبدالعزيز احمد | V106: 1
B107: بلال عطيه على احمد | C107: 2 | D107: 2 | E107: 2 | F107: 2 | J107: 2 | K107: 2 | L107: 1 | M107: 2 | N107: 1 | O107: 1 | P107: 2 | Q107: 1 | R107: 1 | S107: 2 | T107: 1 | U107: 2 | X107: 2 | AE107: 2
B108: بلال محمد عبدالتواب | H108: 1
B109: بلال محمد عبدالعزيز محمد علي | E109: 1 | F109: 2 | G109: 2 | H109: 1 | I109: 2 | J109: 2 | K109: 2 | L109: 2 | M109: 1 | N109: 2 | O109: 1 | P109: 1 | Q109: 2 | R109: 2 | S109: 2 | T109: 2 | U109: 2 | V109: 2 | W109: 2 | X109: 2 | Y109: 2 | Z109: 2 | AA109: 1 | AB109: 2 | AC109: 2 | AE109: 2 | AF109: 1
B110: بيشوي رضا جرجس سعد | E110: 1 | F110: 1 | G110: 1 | I110: 1 | M110: 1 | R110: 1 | W110: 1 | X110: 1 | Y110: 1 | AA110: 1 | AB110: 1 | AD110: 1 | AE110: 1
B111: جابر صبري محمود اسماعيل | U111: 1
B112: جاد رزق عبدالعزيز احمد شعيشع | F112: 1
B113: جرجس موريس وهيب | C113: 1
B114: جمعه حمدي زكي محمد | M114: 1 | N114: 1 | O114: 1 | Q114: 1 | R114: 1 | S114: 1 | U114: 1 | V114: 1 | W114: 1 | X114: 1
B115: حازم عبدالجليل احمد | AA115: 1 | AE115: 1
B116: حسام عصام فتحي محمد | F116: 1 | S116: 1 | Z116: 1 | AA116: 1
B117: حسام فتحي احمد الشامي | M117: 1 | N117: 2 | O117: 1
B118: حسام كريم ابراهيم السيد | C118: 1 | D118: 2
B119: حسام محمد محمود يوسف | C119: 1 | D119: 1 | E119: 1 | F119: 1
B120: حسام نبيل محمود | C120: 2 | D120: 1
B121: حسب النبي سعيد فتحي | D121: 1 | E121: 1 | F121: 1 | G121: 1 | H121: 1 | I121: 1 | K121: 1 | L121: 1 | M121: 1 | N121: 1 | P121: 1 | Q121: 1 | R121: 1 | S121: 1 | T121: 1 | U121: 1 | W121: 1 | Y121: 1 | Z121: 1 | AA121: 1
B122: حسن الحسيني مسعد | C122: 1 | D122: 2 | E122: 1 | F122: 1 | G122: 1
B123: حسن رمضان السيد سليم | E123: 1
B124: حسن سامي سعيد | T124: 1 | W124: 1 | AC124: 1 | AF124: 1
B125: حسن سامي سعيد الكر | T125: 1 | U125: 1
B126: حسن عبدالغفار محمد عبدالعليم | C126: 2 | D126: 1 | F126: 1
B127: حسني عزالدين عبدالفضيل | D127: 1 | E127: 1 | F127: 1 | G127: 1 | K127: 1 | L127: 1 | M127: 1 | N127: 1 | R127: 1 | S127: 1 | T127: 1 | U127: 1 | V127: 1 | Y127: 1 | Z127: 1 | AA127: 1 | AB127: 1 | AC127: 1 | AF127: 1
B128: حسين عبدالغنى السيد محمد | C128: 1 | D128: 1 | E128: 1 | F128: 1 | H128: 1 | I128: 1 | J128: 1 | K128: 1 | L128: 1 | M128: 1 | N128: 1 | P128: 1 | Q128: 1 | R128: 1 | S128: 1 | T128: 1 | U128: 1 | W128: 1 | X128: 1 | Y128: 1 | Z128: 1 | AA128: 1 | AB128: 1 | AD128: 1 | AE128: 1 | AF128: 1
B129: حماده رجب عبدالحفيظ | AF129: 1
B130: حماده مرعي سعد محمد | AB130: 1
B131: خالد عوض السيد عبدالرحمن | R131: 1 | S131: 1 | T131: 1 | U131: 1 | V131: 1 | W131: 1 | X131: 1 | Y131: 1 | Z131: 1 | AC131: 2 | AE131: 1 | AF131: 1
B132: خالد محمود محمد عبداللطيف | C132: 1 | D132: 2 | E132: 2 | F132: 2 | I132: 1 | J132: 1 | K132: 1 | L132: 1 | N132: 1 | Q132: 1 | R132: 1 | T132: 1 | X132: 1
B133: خيري احمد عبدالغني هنداوي | Y133: 1 | Z133: 1 | AA133: 1 | AB133: 1 | AC133: 1 | AE133: 1 | AF133: 1
B134: درويش الجوهري ابراهيم البري | M134: 1 | N134: 1 | O134: 1 | AA134: 1 | AB134: 1
B135: درويش رافت درويش | C135: 2 | D135: 2 | E135: 1 | F135: 1 | G135: 1 | K135: 2 | L135: 2 | M135: 2 | N135: 2 | O135: 1 | P135: 2 | Q135: 2 | R135: 1 | S135: 2 | T135: 2 | U135: 2 | V135: 1 | W135: 2 | X135: 2 | Y135: 2 | Z135: 1 | AA135: 1 | AB135: 2 | AC135: 2 | AD135: 1 | AE135: 2 | AF135: 2
B136: راجي محمد الصباحي | N136: 1 | O136: 1 | Y136: 1 | Z136: 1 | AA136: 1 | AB136: 1 | AC136: 1
B137: راعي سيد علي بربر | C137: 2 | D137: 2 | E137: 2 | F137: 2 | Z137: 1 | AA137: 2 | AB137: 2 | AC137: 1 | AD137: 1 | AE137: 2 | AF137: 2
B138: رافت اشرف رفعت امين | L138: 1 | M138: 1 | P138: 1 | Q138: 1 | S138: 1 | T138: 1 | U138: 1 | W138: 1 | Y138: 1 | AA138: 1 | AB138: 1 | AE138: 1 | AF138: 1
B139: رافت كامل عبدالله عبدالعزيز | J139: 1
B140: رزق علاء رجب نصر عيسي | H140: 1 | I140: 2
B141: رزق محمد رزق اسماعيل | H141: 1
B142: رضا غريب صقر محمد | E142: 1
B143: رضا معوض عباس | Z143: 1 | AB143: 1
B144: رضوان شحاته احمد | AB144: 1
B145: رفعت اشرف رفعت امين | C145: 1 | E145: 1 | F145: 1 | G145: 1 | I145: 1 | J145: 1 | K145: 1 | M145: 1 | N145: 1 | R145: 1 | Z145: 1 | AB145: 1
B146: زكريا عبدالفتاح عبدالحميد | E146: 1 | F146: 1 | G146: 1 | H146: 1 | I146: 1 | J146: 1 | K146: 1 | L146: 1 | M146: 1 | N146: 1 | O146: 1 | P146: 1 | R146: 1 | S146: 1 | T146: 1 | U146: 1 | V146: 1 | W146: 1 | X146: 1 | Y146: 1 | Z146: 1 | AA146: 1 | AB146: 1 | AC146: 1 | AE146: 1 | AF146: 1
B147: زياد سالم احمد فراج | E147: 1 | F147: 1 | G147: 1 | H147: 1 | J147: 1 | K147: 1 | L147: 1 | N147: 1 | U147: 1 | W147: 1
B148: سامح انور طلبه عطاالله | C148: 1 | D148: 1 | E148: 1 | F148: 1 | G148: 1 | T148: 1 | U148: 1 | W148: 1 | AD148: 1
B149: سامح عابدين محمد علي | Q149: 1 | R149: 1 | S149: 1 | T149: 1 | U149: 1
B150: سامي صبري جبر علي | D150: 1 | E150: 1 | F150: 1 | H150: 1 | I150: 1 | K150: 1 | L150: 1 | M150: 1 | N150: 1 | Q150: 1 | R150: 1 | S150: 1 | T150: 1 | X150: 1 | Z150: 1 | AA150: 1
B151: سامي عبدالله محمد سيد احمد | D151: 1 | F151: 1 | G151: 1 | J151: 1 | K151: 1 | R151: 1 | T151: 1 | U151: 1 | X151: 1 | Y151: 1 | AE151: 1
B152: سامي محمد عبده السيسي | F152: 1 | G152: 1 | I152: 2 | J152: 2 | K152: 1 | L152: 2 | M152: 1 | N152: 2 | Q152: 1 | R152: 2 | S152: 1 | T152: 2 | U152: 1 | V152: 1 | W152: 1 | X152: 2 | Y152: 1 | Z152: 2 | AB152: 1 | AC152: 1 | AD152: 1 | AE152: 1 | AF152: 1
B153: سعد محمد سعد خرش | I153: 1
B154: سعودي محمد طلبه محمد | W154: 1
B155: سعودي محمد عطيه | E155: 1 | F155: 1 | G155: 2 | H155: 1 | I155: 2 | J155: 1 | K155: 2 | L155: 1 | M155: 1 | N155: 1 | P155: 1 | Q155: 2 | R155: 2 | S155: 1 | T155: 2 | U155: 2 | V155: 1 | X155: 1 | Y155: 2 | AB155: 2 | AC155: 1 | AE155: 2 | AF155: 1
B156: سعيد علي عبدالهادي | E156: 1 | F156: 1 | G156: 1 | H156: 1 | I156: 1 | K156: 1 | M156: 1 | N156: 1 | O156: 1 | R156: 1 | S156: 1 | T156: 1 | U156: 1 | V156: 1 | W156: 1 | Y156: 1 | Z156: 1 | AC156: 1
B157: سليم اسماعيل بيومي سليم | E157: 1 | H157: 1 | I157: 1 | V157: 1 | Y157: 1 | AE157: 1 | AF157: 1
B158: سليم عمار رحصان عيد
B159: سيد فاروق فؤاد سعد | AE159: 1 | AF159: 2
B160: شامل مبروك حسن محمد | G160: 1
B161: شريف احمد محمد عبدالله | C161: 1 | D161: 1 | F161: 1 | G161: 1 | H161: 1 | I161: 1 | J161: 1 | K161: 2 | M161: 1 | N161: 1 | Q161: 1 | R161: 1 | W161: 1 | Y161: 2 | AA161: 1 | AC161: 1 | AD161: 1
B162: شريف عبدالعزيز علي هندي | R162: 1 | T162: 1 | V162: 1 | Y162: 1 | Z162: 1 | AA162: 1 | AB162: 1
B163: شريف عمر امين محمد | D163: 1 | E163: 1 | F163: 1 | G163: 1 | H163: 1 | J163: 1 | K163: 1 | L163: 1 | M163: 1 | N163: 1 | O163: 1 | Q163: 1 | R163: 1 | S163: 1 | T163: 1 | V163: 1 | X163: 1 | Y163: 1 | Z163: 1 | AA163: 1 | AB163: 1
B164: شعبان الشحات المتولي الشوكي | Y164: 1
B165: شعبان بلبل الشحات المتولي | E165: 1 | F165: 2 | G165: 2 | H165: 2 | I165: 2 | J165: 2 | K165: 2 | L165: 2 | M165: 1 | N165: 2 | O165: 2 | P165: 1 | Q165: 2 | R165: 1 | S165: 1 | T165: 2 | U165: 1 | V165: 1 | W165: 2 | X165: 2 | Y165: 1 | Z165: 1 | AA165: 1 | AB165: 1 | AC165: 2 | AD165: 1 | AE165: 2 | AF165: 1
B166: شعبان حمدي شعبان الهليس | AC166: 1
B167: شعبان عبدالكريم علواني عبدالكريم | AC167: 1 | AD167: 1 | AE167: 2 | AF167: 2
B168: شكر صابر ابراهيم رضوان | C168: 1 | D168: 1 | E168: 1 | F168: 1 | H168: 1 | J168: 1 | K168: 1 | L168: 1 | M168: 1 | N168: 1 | O168: 1 | Q168: 1 | R168: 1 | S168: 1 | U168: 1 | V168: 1 | X168: 1 | Y168: 1 | Z168: 1 | AA168: 1 | AC168: 1
B169: شهاب ابراهيم فرج عبدالعزيز | R169: 1
B170: صابر صبري محمود اسماعيل | T170: 1 | V170: 1 | W170: 1 | X170: 1 | Y170: 1 | Z170: 1 | AA170: 1 | AB170: 1 | AC170: 1 | AE170: 1 | AF170: 1
B171: صادق عيد السيد عبدالرحمن | Y171: 1 | Z171: 1
B172: صبحي توفيق السيد | C172: 1 | D172: 1 | E172: 1 | F172: 1 | G172: 1 | H172: 1 | I172: 2 | J172: 1 | K172: 1 | L172: 1 | M172: 1 | N172: 1 | Q172: 1 | S172: 1 | W172: 1 | X172: 1 | Y172: 1
B173: ضياء محمد محمد شحاته بحيري | R173: 1
B174: طارق عبدالفتاح السعيد عبدالباقي | D174: 1 | G174: 1 | H174: 1 | J174: 1 | L174: 1 | M174: 1 | T174: 1 | W174: 1 | X174: 1 | Y174: 1 | Z174: 1 | AA174: 1 | AB174: 1 | AC174: 1 | AD174: 1 | AF174: 1
B175: طارق عرفه عنتر زراع | N175: 1 | P175: 1 | Q175: 1 | R175: 2 | S175: 1 | T175: 1 | U175: 1 | V175: 1 | W175: 2 | X175: 1 | Y175: 1 | Z175: 2 | AA175: 1 | AD175: 1 | AF175: 2
B176: طارق محمود محمود عبدالمعطي | C176: 2 | D176: 1 | E176: 1 | F176: 1 | G176: 1 | J176: 1 | L176: 1 | M176: 2 | N176: 1 | O176: 1 | Q176: 2 | R176: 1 | S176: 1 | T176: 2 | U176: 2 | W176: 2 | X176: 2 | Z176: 1 | AA176: 1 | AC176: 1 | AF176: 1
B177: طه حسن حسن الهندي | C177: 2 | D177: 2 | E177: 1 | F177: 1 | G177: 1 | H177: 1 | I177: 1 | J177: 2 | K177: 1 | L177: 1 | M177: 1 | N177: 1 | O177: 1 | P177: 1 | Q177: 1 | R177: 1 | S177: 2 | T177: 1 | U177: 2 | V177: 1 | W177: 1 | X177: 2 | Y177: 1 | Z177: 2 | AA177: 1 | AB177: 1 | AC177: 1 | AD177: 1 | AE177: 1 | AF177: 2
B178: طه عيد عبدالله شحاته | T178: 1 | U178: 2 | V178: 1 | W178: 1 | X178: 1 | Y178: 1 | Z178: 1 | AA178: 1 | AC178: 1 | AE178: 1 | AF178: 1
B179: عاصم السيد عبدالرحمن الدسوقي | Y179: 1 | Z179: 1
B180: عاطف ابراهيم حليم مشحوت | F180: 1 | H180: 1 | S180: 1 | T180: 1 | U180: 1 | X180: 1
B181: عاطف محمد محمد دراز | D181: 1 | E181: 1 | F181: 1 | G181: 1 | H181: 1 | I181: 1 | K181: 1 | M181: 1 | N181: 1 | O181: 1 | T181: 1 | U181: 1 | V181: 1 | W181: 1 | Y181: 1 | Z181: 1 | AA181: 1 | AB181: 1 | AC181: 1 | AF181: 1
B182: عامر ابراهيم عامر بدوي | D182: 1 | E182: 1 | G182: 1 | H182: 1 | M182: 1 | R182: 1 | T182: 1
B183: عامر حبشي محمد حبشي | E183: 1 | F183: 2 | G183: 2 | H183: 2 | I183: 2 | J183: 2 | K183: 2 | L183: 2 | M183: 1 | N183: 2 | O183: 2 | Q183: 2 | R183: 1 | S183: 1 | T183: 2 | U183: 1 | V183: 1 | W183: 2 | X183: 2 | Y183: 2 | AA183: 1 | AB183: 1 | AC183: 2 | AE183: 1 | AF183: 1
B184: عبدالحميد غريب عبدالحميد | D184: 1 | E184: 1 | F184: 1 | G184: 1 | H184: 1 | I184: 1 | K184: 1 | L184: 1 | M184: 1 | N184: 1 | P184: 1 | Q184: 1 | R184: 1 | S184: 1 | T184: 1 | U184: 1 | W184: 1 | X184: 1 | Y184: 1 | Z184: 1 | AA184: 1 | AB184: 1 | AC184: 1 | AD184: 1
B185: عبدالرحمن ابراهيم عبدالغني الطوخي | L185: 1 | O185: 1 | Q185: 1
B186: عبدالرحمن ابراهيم عيد الفقي | E186: 1 | F186: 1 | I186: 1
B187: عبدالرحمن سالم عبدالرحمن | C187: 1 | E187: 1 | F187: 1 | M187: 1 | O187: 1 | P187: 1 | S187: 1 | T187: 1 | U187: 1 | W187: 1 | X187: 1 | Y187: 1 | Z187: 1
B188: عبدالرحمن عبداللاه عبدالعزيز طه | N188: 1 | P188: 1 | Q188: 1 | R188: 1 | T188: 1 | W188: 1 | Z188: 1 | AC188: 1 | AD188: 1
B189: عبدالرحمن محمد زياد محمد | C189: 1 | D189: 1
B190: عبدالستارعيدعبدالستارعيسي | M190: 1 | N190: 1 | O190: 1 | Q190: 1 | S190: 1 | T190: 1 | V190: 1 | W190: 1 | Y190: 1 | Z190: 1 | AA190: 1
B191: عبدالسلام فتحي شلبي | I191: 2 | J191: 2 | K191: 2 | L191: 2
B192: عبدالسلام فتحي محمد | N192: 1 | T192: 1
B193: عبدالسلام مصطفي علي | V193: 1
B194: عبدالعزيز حمدي عبدالعزيز محمد | AC194: 1
B195: عبدالغفار محمد منير | C195: 1 | D195: 1 | E195: 1 | F195: 1 | H195: 1 | J195: 1 | L195: 1 | N195: 1 | Q195: 1 | X195: 1
B196: عبدالغفور محمد عبالغفور دره | C196: 1 | D196: 1 | E196: 1 | H196: 1 | Z196: 1
B197: عبدالغني جمال عاشور محمد | U197: 1 | V197: 1 | W197: 1 | Y197: 1 | Z197: 1 | AA197: 1 | AB197: 1 | AC197: 1
B198: عبدالفتاح جمعه عبدالحكيم جمعه | G198: 1 | H198: 1 | K198: 1
B199: عبدالفتاح عبدالقوي عبدالفتاح | D199: 1 | E199: 1 | F199: 1 | G199: 1 | H199: 1 | K199: 1 | N199: 1 | P199: 1 | R199: 2 | T199: 1 | U199: 2 | X199: 2 | Z199: 1 | AA199: 2 | AB199: 1 | AC199: 2 | AE199: 1
B200: عبدالكريم محمد محمود | AB200: 1
... 209 more rows

Sheet Salim
C2: سامح عابدين محمد علي
A4: اسم الموظف | B4: عدد الايام | C4: المرتب | D4: السلف | E4: الاجمالي
A5: سامح عابدين محمد علي | B5: 5 | C5: 325 | E5: 325
